Cogmind - Beta 16.1 @@@ ROGUE MODE // 2026.03.22 @ 23:42:06 Player: Godsword Result: Destroyed by S-27 Virus with Autogun Performance ------------- Evolutions (5) 2500 Regions Visited (7) 1400 Robots Destroyed (10) 50 Value Destroyed (114) 114 Prototype IDs (2) 40 Alien Tech Used (0) 0 Bonus (0) 0 TOTAL SCORE: 4104 Bonus ------- None Cogmind --------- Core Integrity 0/1000 Matter 48/300 Energy 99/100 System Corruption 1% Temperature Cool (0) Movement Core (50) Location -5/Factory Parts ------- > --- POWER (2) -------- (None) > --- PROPULSION (7) --- (None) > --- UTILITY (6) ------ Enhanced Optical Array Targeting Computer > --- WEAPON (2) ------- (None) > --- INVENTORY (5) ---- Improved Deuterium Engine Enhanced Nuclear Core Improved Terrain Scanner Improved Terrain Scanner Sensor Drone Bay (18/20) Peak State ------------ > --- POWER ------------ Enhanced Nuclear Core > --- PROPULSION ------- VTOL Module VTOL Module VTOL Module VTOL Module VTOL Module > --- UTILITY ---------- Disposable Heat Sink Small Storage Unit Improved Terrain Scanner Advanced ECM Suite > --- WEAPON ----------- Heavy Assault Rifle Gauss Rifle > --- INVENTORY -------- Subdweller Power Source Improved Deuterium Engine Improved Terrain Scanner Recalibrator Recalibrator Sensor Drone Bay Mining Laser [Rating: 33] Favorites ----------- Power Ion Engine Engine Ion Engine Power Core Enhanced Nuclear Core Propulsion VTOL Module Wheel Wheel Flight Unit VTOL Module Utility Sensor Drone Bay Device Sensor Drone Bay Storage High-capacity Storage Unit Processor Enhanced Optical Array Weapon Medium Laser Energy Gun Medium Laser Ballistic Gun Assault Rifle Special Weapon Mining Laser Build | -11 -10 -10 -10 -9 -7 -6 -5 ------- Run | Yrd Mat Min Sub Rec Fac Fac Fac Slots Evolved 10 | . . . . . 6 2 2 Power 1 | . . . . . 1 . . Propulsion 5 | . . . . . 4 . 1 Utility 4 | . . . . . 1 2 1 Weapon . | . . . . . . . . Parts Attached 34 | 7 . 3 3 1 13 4 3 Power 5 | 1 . . . . 3 1 . Engine 3 | 1 . . . . 2 . . Core 2 | . . . . . 1 1 . Reactor . | . . . . . . . . Propulsion 9 | 2 . . 1 1 5 . . Treads . | . . . . . . . . Leg . | . . . . . . . . Wheel 4 | 2 . . 1 1 . . . Hover . | . . . . . . . . Flight 5 | . . . . . 5 . . Utility 12 | 2 . 1 1 . 2 3 3 Device 8 | 1 . 1 . . 2 2 2 Storage 2 | 1 . . 1 . . . . Processor 2 | . . . . . . 1 1 Hackware . | . . . . . . . . Protection . | . . . . . . . . Artifact . | . . . . . . . . Weapon 8 | 2 . 2 1 . 3 . . Energy Gun 3 | 2 . 1 . . . . . Energy Cannon . | . . . . . . . . Ballistic Gun 3 | . . . 1 . 2 . . Ballistic Cannon . | . . . . . . . . Launcher . | . . . . . . . . Special Weapon 2 | . . 1 . . 1 . . Impact Weapon . | . . . . . . . . Slashing Weapon . | . . . . . . . . Piercing Weapon . | . . . . . . . . Special Melee Weapon . | . . . . . . . . Unidentified Prototypes 2 | . . 1 . . 1 . . Parts Lost 13 | . . 2 2 . . 4 5 Power 1 | . . . . . . . 1 Propulsion 7 | . . 1 1 . . 3 2 Utility 2 | . . . . . . . 2 Weapon 3 | . . 1 1 . . 1 . Highest Loss Streak 4 | . . 2 3 . . 3 4 To Critical Strikes . | . . . . . . . . Average Backups 10 | 1 6 7 12 15 7 6 5 Power 1 | . 1 1 1 2 . 2 2 Propulsion 3 | . 3 3 5 6 2 . . Utility 4 | . 1 1 5 6 4 3 3 Weapon . | . 1 2 . . . 1 . Tool/Special . | . . . . . . . . Unused Backups 12 | . . . . 5 6 . 1 Power 1 | . . . . . 1 . . Propulsion 8 | . . . . 5 3 . . Utility 3 | . . . . . 2 . 1 Weapon . | . . . . . . . . Tool/Special . | . . . . . . . . Average Slot Usage (%) 85 | . 100 98 97 94 81 77 25 Engine 11 | . 14 14 14 14 11 . 1 Wheel 18 | . 28 27 27 28 1 . . Flight 8 | . . . . . 36 33 6 Device 13 | . 14 14 14 14 13 20 3 Storage 10 | . 14 14 14 14 7 6 . Processor 1 | . . . . . . 4 10 Energy Gun 11 | . 28 25 12 14 . . . Ballistic Gun 6 | . . . 12 9 7 1 . Peak Build Rating 33 | 9 9 15 17 17 31 33 24 Average Rating 17 | 5 9 14 16 16 23 31 14 On Entrance 14 | . 9 9 13 16 16 27 26 Avg Prop Armor Cover (%) . | . . . . . . . . Naked Turns . | . . . . . . . . Heaviest Build 63 | 13 13 27 63 63 20 20 8 Greatest Support 26 | 20 20 20 26 26 20 20 8 Greatest Overweight (x) 3 | . . 2 3 2 . 2 2 Average Overweight (x) . | . . . 1 2 . . . Largest Inventory Capacity 20 | 8 8 8 20 20 20 8 8 Average Capacity 13 | 7 8 8 18 20 8 8 5 Most Carried 20 | 6 7 8 18 20 19 8 8 Average Carried 12 | 1 6 7 15 18 7 6 5 Final Capacity 20 | 8 8 8 20 20 8 8 5 Final Carried 20 | 6 7 8 18 20 8 7 5 Class Distribution -------------------- 73% | Mutant 26% | Sprinter Dominant Class ---------------- Mutant | -10/Materials Mutant | -10/Mines Mutant | -10/Subcaves Mutant | -9/Recycling Sprinter | -7/Factory Sprinter | -6/Factory Sprinter | -5/Factory Resources | -11 -10 -10 -10 -9 -7 -6 -5 ----------- Run | Yrd Mat Min Sub Rec Fac Fac Fac Matter Collected 407 | 270 . 20 67 45 . . 5 Remotely . | . . . . . . . . Salvage Created 341 | 168 . . 173 . . . . Parts 24 | 13 . . 11 . . . . Haulers Intercepted . | . . . . . . . . Recyclers Shooed . | . . . . . . . . Parts Field Recycled . | . . . . . . . . Retrieved Matter . | . . . . . . . . Parts Self-Destructed 6 | . . . 6 . . . . Prevented . | . . . . . . . . Parts Restored . | . . . . . . . . Kills | -11 -10 -10 -10 -9 -7 -6 -5 ------- Run | Yrd Mat Min Sub Rec Fac Fac Fac Combat Hostiles Destroyed 5 | . . . 5 . . . . Guns 5 | . . . 5 . . . . Classes Destroyed 5 | 2 . . 3 . . . . Tunneler 4 | 4 . . . . . . . Recycler 1 | 1 . . . . . . . Swarmer 4 | . . . 4 . . . . Cobbler 1 | . . . 1 . . . . Subdweller 1 | . . . 1 . . . . Best Kill Streak 4 | 4 . . 4 . . . . Combat Bots Only 4 | . . . 4 . . . . Max Kills in Single Turn 2 | 1 . . 2 . . . . Gunslinging . | . . . . . . . . Exploded . | . . . . . . . . Melee . | . . . . . . . . Uniques/NPCs Destroyed . | . . . . . . . . Combat | -11 -10 -10 -10 -9 -7 -6 -5 -------- Run | Yrd Mat Min Sub Rec Fac Fac Fac Hostile Shots Fired 295 | . . . 112 18 13 8 144 Missed 140 | . . . 51 9 6 1 73 Hits 155 | . . . 61 9 7 7 71 Projectile 155 | . . . 61 9 7 7 71 Critical Strikes 1 | . . . . . . . 1 Damage Taken 2239 | . . 155 439 141 99 191 1214 Core 1219 | . . . 86 62 17 48 1006 Absorbed by Shields . | . . . . . . . . Core Remaining (%) 82 | 100 . . . 40 97 94 . Volleys Fired 26 | 6 . 3 17 . . . . Largest 2 | 2 . 1 2 . . . . Hottest 100 | 80 . 100 70 . . . . Shots Fired 51 | 12 . 3 34 2 . . . Gun 48 | 12 . . 34 2 . . . Cannon . | . . . . . . . . Launcher . | . . . . . . . . Special 3 | . . 3 . . . . . Kinetic 17 | . . . 17 . . . . Thermal 34 | 12 . 3 17 2 . . . Explosive . | . . . . . . . . Electromagnetic . | . . . . . . . . Robot Hit Streak 16 | 9 . . 16 3 . . . Robot Miss Streak 2 | . . . 2 . . . . Penetration Max . | . . . . . . . . Secondary Targets . | . . . . . . . . Shots Hit Robots 30 | 9 . . 20 1 . . . Core Hits 15 | 6 . . 9 . . . . Critical Kills . | . . . . . . . . Critical Parts Destroyed . | . . . . . . . . Critical Strikes 2 | . . . 2 . . . . Burn 2 | . . . 2 . . . . Melee Attacks . | . . . . . . . . Impact . | . . . . . . . . Slashing . | . . . . . . . . Piercing . | . . . . . . . . Sneak Attacks . | . . . . . . . . Combat Hostiles . | . . . . . . . . Follow-up Attacks . | . . . . . . . . Damage Inflicted 408 | 97 . . 281 12 . . 18 Guns 390 | 97 . . 281 12 . . . Cannons . | . . . . . . . . Explosions . | . . . . . . . . Melee . | . . . . . . . . Ramming 18 | . . . . . . . 18 Kinetic 158 | . . . 158 . . . . Thermal 232 | 97 . . 123 12 . . . Explosive . | . . . . . . . . Electromagnetic . | . . . . . . . . Impact . | . . . . . . . . Slashing . | . . . . . . . . Piercing . | . . . . . . . . Highest Corruption 5 | . . 5 5 5 . . 1 Average Corruption 4 | . . 5 5 5 . . 1 Corruption Purged . | . . . . . . . . Corruption Blocked . | . . . . . . . . Effects 20 | . . . 8 12 . . . Message Errors 5 | . . . 4 1 . . . Matter Fused 6 | . . . 3 3 . . . Energy Discharges 2 | . . . . 2 . . . Parts Rejected 1 | . . . . 1 . . . Data Loss (minor) 3 | . . . 1 2 . . . Misfires 2 | . . . . 2 . . . Alerts 1 | . . . . 1 . . . Overload Shots . | . . . . . . . . Overflow Damage . | . . . . . . . . Projectiles . | . . . . . . . . Explosions . | . . . . . . . . Melee . | . . . . . . . . Knockbacks . | . . . . . . . . Impact . | . . . . . . . . Kinetic . | . . . . . . . . Secondary . | . . . . . . . . Self-Inflicted Damage 9 | . . . . . . . 9 Shots . | . . . . . . . . Rammed 3 | . . . . . . . 3 Targets Rammed 3 | . . . . . . . 3 Kicked . | . . . . . . . . Crushed . | . . . . . . . . Highest Temperature 228 | 54 . 40 . 10 228 38 . Average Temperature 29 | 23 . 19 . 7 58 2 . Received Heat Transfer 501 | . . . 279 27 45 66 84 Siege Activations . | . . . . . . . . Martial Activations . | . . . . . . . . Shielding Activations . | . . . . . . . . Robots Disrupted . | . . . . . . . . Combat Hostiles . | . . . . . . . . Robots Corrupted . | . . . . . . . . Combat Hostiles . | . . . . . . . . Parts Fried . | . . . . . . . . Impact Corruptions . | . . . . . . . . Robots Melted . | . . . . . . . . Combat Hostiles . | . . . . . . . . Parts Melted . | . . . . . . . . Heat Transferred 780 | 225 . . 518 37 . . . Parts Sabotaged . | . . . . . . . . Parts Stolen . | . . . . . . . . Parts Stripped . | . . . . . . . . Power Chain Reactions . | . . . . . . . . Alert | -11 -10 -10 -10 -9 -7 -6 -5 ------- Run | Yrd Mat Min Sub Rec Fac Fac Fac Maximum Alert Level . | . . . . . . . . Low Security (%) 100 | 100 100 100 . 100 100 100 100 Level 1 . | . . . . . . . . Level 2 . | . . . . . . . . Level 3 . | . . . . . . . . Level 4 . | . . . . . . . . Level 5 . | . . . . . . . . High Security . | . . . . . . . . Max Security . | . . . . . . . . Peak Influence 100 | 15 6 1 . 55 59 25 100 Initial 55 | . 6 . . 55 9 18 . Average 8 | 3 1 . . 7 11 9 23 Influence Increases 605 | 25 . 2 215 34 69 65 195 Destroy 0b10 Robot/C 80 | . . . 80 . . . . Destroy 0b10 Robot/NC 25 | 25 . . . . . . . Successful Hack 33 | . . . . 4 24 5 . Destroy Structure 2 | . . 2 . . . . . Partial Spotted 120 | . . . . . 45 45 30 Lose Combat Pursuer 345 | . . . 135 30 . 15 165 Influence Decreases 510 | 15 10 2 100 127 52 104 100 Entered New Map 98 | . 4 . . 60 13 21 . Time Decay 326 | 15 6 1 90 67 39 58 50 Lost Part 86 | . . 1 10 . . 25 50 Squads Dispatched 7 | . . . . . 1 2 4 Investigation 3 | . . . . . 1 1 1 Extermination . | . . . . . . . . Reinforcement 4 | . . . . . . 1 3 Assault . | . . . . . . . . Garrison . | . . . . . . . . Intercept . | . . . . . . . . Searches Triggered . | . . . . . . . . Construction Impeded . | . . . . . . . . Haulers Reinforced . | . . . . . . . . Active Scanning Responses . | . . . . . . . . Cargo Convoy Interrupts . | . . . . . . . . Stealth | -11 -10 -10 -10 -9 -7 -6 -5 --------- Run | Yrd Mat Min Sub Rec Fac Fac Fac Distress Signals . | . . . . . . . . Communications Jammed . | . . . . . . . . Distress Signals . | . . . . . . . . Times Spotted 62 | . . . 18 2 8 6 28 Peak Tracking Total 16 | . . . 6 2 10 4 16 Tactical Retreats 7 | . . . 2 1 . 1 3 Traps | -11 -10 -10 -10 -9 -7 -6 -5 ------- Run | Yrd Mat Min Sub Rec Fac Fac Fac Traps Triggered 1 | . . . . . . 1 . Indirectly . | . . . . . . . . Trap Hack Attempts . | . . . . . . . . Triggered . | . . . . . . . . Disarmed . | . . . . . . . . Reprogrammed . | . . . . . . . . Reused . | . . . . . . . . Traps Extracted . | . . . . . . . . Installed . | . . . . . . . . Triggered . | . . . . . . . . Machines | -11 -10 -10 -10 -9 -7 -6 -5 ---------- Run | Yrd Mat Min Sub Rec Fac Fac Fac Machines Disabled . | . . . . . . . . Max in Single Turn . | . . . . . . . . Machines Repaired . | . . . . . . . . Machines Dismantled . | . . . . . . . . Machines Sabotaged . | . . . . . . . . Overloaded Fab Kills . | . . . . . . . . Hacking | -11 -10 -10 -10 -9 -7 -6 -5 --------- Run | Yrd Mat Min Sub Rec Fac Fac Fac Machines Accessed 8 | . . 1 . 2 2 2 1 Terminals 5 | . . . . 2 1 2 . Fabricators 2 | . . . . . 1 . 1 Repair Stations . | . . . . . . . . Recycling Units . | . . . . . . . . Scanalyzers . | . . . . . . . . Garrison Access . | . . . . . . . . Total Hacks 18 | . . 1 . 5 4 5 3 Successful 9 | . . 1 . 4 3 1 . Failed 9 | . . . . 1 1 4 3 Catastrophic 2 | . . . . . 1 . 1 Database Lockouts . | . . . . . . . . Manual . | . . . . . . . . Terminals 12 | . . . . 5 2 5 . Fabricators 5 | . . . . . 2 . 3 Repair Stations . | . . . . . . . . Recycling Units . | . . . . . . . . Scanalyzers . | . . . . . . . . Garrison Access . | . . . . . . . . Terminal Hacks 8 | . . 1 . 4 2 1 . Record 4 | . . . . 3 1 . . Open Door 1 | . . 1 . . . . . Open DSF 1 | . . . . . . 1 . Emergency Access Points 1 | . . . . . 1 . . Alert Level 1 | . . . . 1 . . . Fabricator Hacks 1 | . . . . . 1 . . Build 1 | . . . . . 1 . . Repair Station Hacks . | . . . . . . . . Recycling Unit Hacks . | . . . . . . . . Scanalyzer . | . . . . . . . . Garrison Access Hacks . | . . . . . . . . Unauthorized Hacks . | . . . . . . . . Terminals . | . . . . . . . . Fabricators . | . . . . . . . . Repair Stations . | . . . . . . . . Recycling Units . | . . . . . . . . Scanalyzers . | . . . . . . . . Garrison Access . | . . . . . . . . Data Cores Recovered . | . . . . . . . . Used . | . . . . . . . . Hacking Detections 5 | . . . . 1 2 1 1 Full Trace Events 3 | . . . . . 1 1 1 Feedback Events . | . . . . . . . . Feedback Blocked . | . . . . . . . . Robot Schematics Acquired . | . . . . . . . . Robots Built . | . . . . . . . . Authchips . | . . . . . . . . Time . | . . . . . . . . Total Robot Build Rating . | . . . . . . . . Part Schematics Acquired . | . . . . . . . . Parts Built 2 | . . . . . 2 . . Authchips . | . . . . . . . . Time 28 | . . . . . 28 . . Total Part Build Rating 8 | . . . . . 8 . . Part Studies Acquired . | . . . . . . . . Parts Repaired . | . . . . . . . . Time . | . . . . . . . . Parts Recycled . | . . . . . . . . Recycled Matter . | . . . . . . . . Retrieved Matter . | . . . . . . . . Retrieved Components . | . . . . . . . . Parts Scanalyzed . | . . . . . . . . Part Schematics Acquired . | . . . . . . . . Parts Damaged . | . . . . . . . . Bothacking | -11 -10 -10 -10 -9 -7 -6 -5 ------------ Run | Yrd Mat Min Sub Rec Fac Fac Fac Used RIF Installer . | . . . . . . . . Robots Hacked . | . . . . . . . . Non-combat . | . . . . . . . . Combat . | . . . . . . . . Robot Hacks Applied . | . . . . . . . . Relay Couplers Released . | . . . . . . . . Fabnet Peak Effective % . | . . . . . . . . Robots Rewired . | . . . . . . . . Allies Hacked . | . . . . . . . . Hacks Repelled . | . . . . . . . . Allies | -11 -10 -10 -10 -9 -7 -6 -5 -------- Run | Yrd Mat Min Sub Rec Fac Fac Fac Total Allies . | . . . . . . . . Largest Group . | . . . . . . . . Highest-Rated Group . | . . . . . . . . Highest-Rated Ally . | . . . . . . . . Total Orders . | . . . . . . . . Ally Attacks . | . . . . . . . . Total Damage . | . . . . . . . . Kills . | . . . . . . . . Allies Corrupted . | . . . . . . . . Allies Melted . | . . . . . . . . Intel | -11 -10 -10 -10 -9 -7 -6 -5 ------- Run | Yrd Mat Min Sub Rec Fac Fac Fac Active Infowar (turns) 595 | 12 70 7 . . 186 149 171 Optics 289 | . . . . . . 118 171 Terrain 374 | 12 70 7 . . 186 57 42 ECM 28 | . . . . . . 28 . Robot Analysis Total . | . . . . . . . . Derelict Logs Recovered . | . . . . . . . . Drone Launches 13 | . . 5 . 8 . . . Drone Recoveries 11 | . . . 3 8 . . . Exploration | -11 -10 -10 -10 -9 -7 -6 -5 ------------- Run | Yrd Mat Min Sub Rec Fac Fac Fac Turns Passed 1715 | 73 70 186 333 531 202 149 171 Spaces Moved 2090 | 49 87 92 223 412 424 434 369 Core 135 | 1 . . . . . . 134 Treads . | . . . . . . . . Legs . | . . . . . . . . Wheels 862 | 48 87 92 223 412 . . . Hover . | . . . . . . . . Flight 1093 | . . . . . 424 434 235 Fastest Speed 23 | 50 80 80 90 120 23 23 32 Average Speed 62 | 79 80 94 116 120 23 23 39 Slowest Speed 192 | 80 80 110 145 120 23 192 150 Overloaded Moves . | . . . . . . . . Propulsion Burnouts . | . . . . . . . . Robots Hopped 5 | . . . . . 1 2 2 Potential Cave-ins . | . . . . . . . . Cave-ins Triggered 1 | . . 1 . . . . . Exploration Rate (%) 20 | 3 9 15 19 82 12 13 13 Regions Visited 7 Branch Regions 3 Pre-discovered Areas . | . . . . . . . . Known Exits Taken . | . . . . . . . . Unknown Exits Taken 7 | 1 1 1 1 1 1 1 . Scrap Searched 1 | . . 1 . . . . . Spaces Dug 3 | . . 3 . . . . . Terrain Destroyed 3 | . . 3 . . . . . Melee . | . . . . . . . . Projectile 3 | . . 3 . . . . . AOE . | . . . . . . . . Terrain Rammed . | . . . . . . . . Walls Destroyed . | . . . . . . . . Machines Disabled . | . . . . . . . . Actions | -11 -10 -10 -10 -9 -7 -6 -5 --------- Run | Yrd Mat Min Sub Rec Fac Fac Fac Total 2452 | 67 87 181 261 452 531 478 395 Wait 227 | . . 82 6 25 70 35 9 Move 2073 | 48 86 91 222 411 421 429 365 Hop 5 | . . . . . 1 2 2 Pick Up 38 | 6 1 1 12 9 8 1 . Fast Attach 17 | 7 . 1 . . 5 1 3 Attach 18 | . . . 3 1 9 3 2 Detach 10 | . . . . . 5 2 3 Swap 9 | . . 2 1 . 1 3 2 Drop 26 | . . 1 . 6 11 2 6 Fire 26 | 6 . 3 17 . . . . Melee . | . . . . . . . . Ram 3 | . . . . . . . 3 Kick . | . . . . . . . . Crush . | . . . . . . . . Escape Stasis . | . . . . . . . . Rewire . | . . . . . . . . Trap . | . . . . . . . . Miscellaneous . | . . . . . . . . Route ------- -11/Scrapyard -10/Materials -10/Mines -10/Subcaves -9/Recycling -7/Factory -6/Factory -5/Factory History --------- Turn | Location | Event 18 | -11/Scrapyard | Discovered new exit (range 15) 74 | -11/Scrapyard | Entered Materials 86 | -10/Materials | Discovered new exit (range 6) 144 | -10/Materials | Entered Mines 146 | -10/Mines | Found the Drone Emporium 150 | -10/Mines | Found Prototype Device 151 | -10/Mines | Identified Sensor Drone Bay 314 | -10/Mines | Build established: Mutant 325 | -10/Mines | Discovered new exit (range 3) 328 | -10/Mines | Crushed by falling debris 330 | -10/Mines | Entered Subcaves 330 | -10/Subcaves | Accompanied by 5 allies 336 | -10/Subcaves | Ambushed by Subdwellers from Twisted Machinery 377 | -10/Subcaves | Lost 3 parts (1n2w) 414 | -10/Subcaves | Shifting Twisted Machinery released Spk. Treads 430 | -10/Subcaves | Shifting Twisted Machinery released Sub. Optics 475 | -10/Subcaves | Discovered new exit (range 16) 663 | -10/Subcaves | Entered Recycling 1088 | -9/Recycling | Core integrity fell below 50% 1159 | -9/Recycling | Discovered new exit (range 14) 1194 | -9/Recycling | Entered Factory 1194 | -7/Factory | Evolved 6 slots: Power x1, Propulsion x4, Utility x1 1380 | -7/Factory | Fabricated Shock Absorption System? 1394 | -7/Factory | Discovered new exit (range 4) 1396 | -7/Factory | Entered another Factory area 1396 | -6/Factory | Evolved 2 slots: Utility x2 1467 | -6/Factory | Build established: Sprinter 1527 | -6/Factory | Discovered new exit (range 21) 1545 | -6/Factory | Entered another Factory area 1545 | -5/Factory | Evolved 2 slots: Propulsion x1, Utility x1 1573 | -5/Factory | Lost 3 parts (3n) 1625 | -5/Factory | Spotted B-75 Beast 1665 | -5/Factory | Core integrity fell below 50% 1675 | -5/Factory | Lost 4 parts (1p2n1u) 1694 | -5/Factory | Core integrity fell below 20% 1716 | -5/Factory | Destroyed by S-27 Virus with Autogun Last Messages --------------- 01664_ Acquired Adv. Terrain Scanner. 01670_ Slammed into S-27 Virus. 01670_ Destabilizing: System corrupted (+1). 01671_ Slammed into S-27 Virus. 01675_ K-01 Serf destroyed. 01678_ K-01 Serf collects debris. 01696_ ALERT: Hostiles spotted, dispatching reinforcements to Terminal F020. 01699_ K-01 Serf destroyed. 01699_ K-01 Serf collects debris. 01705_ Adv. Terrain Scanner destroyed. 01711_ O-16 Technician: "IFF HANDSHAKE FAILED. SECURING TERMINAL." 01713_ S-27 Virus destroyed. 01713_ K-01 Serf collects debris. 01715_ ALERT: Suspicious intruders detected, dispatching Cutter reinforcements to area. [Achievement: Heavy Suspicion] 01716_ ALERT: Hostiles spotted, dispatching reinforcements to Terminal F005. Map ----- +----------------------------------------------------+ | ?????????????????????????????????????????????????? | | ?????????????????????????????????????????????????? | | ?????????????????????????????????????????????????? | | ?????????????????????????????????????????????????? | | ?????????????????????????????????????????????????? | | ?????????????????????????????????????????????????? | | ?????????????????????????????????????????????????? | | ?????????????????????????????????????????????????? | | ?????????????????????????????????????????????????? | | ?????????????????????????????????????????????????? | | ??????????????????????##?????????????????????????? | | ?????????????????????? ?????????????????????????? | | ?????????????????????? ?????????????????????????? | | ?????????????????????? ?????????????????????????? | | ?????????????????????? ?????????????????????????? | | ?????????????????????? ?????????????????????????? | | ?????????????????????# ?????????????????????????? | | ?????????????????????# ??????????????H??????????? | | ?????????????????????# #?????????????????????????? | | ?????????????????????# #?????????????????????????? | | ?????????????????????# #?????????????????????????? | | ?????????????????????# #?????????????????????????? | | ?????????????????????# #?????????????????????????? | | ?????????????????????# #?????????????????????????? | | ?????????????????????# #####+###?????????????????? | | ????????????????? ???# # @[ #?????????????????? | | ?????????????????????#ks #?????????????????? | | ???????#########?????#s# [ #?????????????????? | | ???????# ????# #########?????????????????? | | ???????# ????# #????###########??????????? | | ???????# ?### ###### #??????????? | | ???????# ?# #??????????? | | ???????# ] # #??????????? | | ???????# # #??????????? | | ???????# " " #??????????? | | ???????# # % #??????????? | | ???????# # #??????????? | | ???????# ?# #??????????? | | ???????# ?####### ## #??????????? | | ???????# ????????# #### #############? | | ???????# ???????# #??# # #? | | ???????#########????######/#### # #? | | ???????????????#????# ! = / + """""""???? | | ????????????????????# = # # """""""??#? | | ????????????????????# # # """""""???# | | ????????????????????# """ """?# #? """"""????? | | ????????????????????# """ ""??# #? ????? | | ????????????????????? """ ""??# #??#######???? | | ?????????????????????? ??# ############## | | ????????????????????? [ ??# # # | +----------------------------------------------------+ Best States ------------- Heat Dissipation 40 Coolant Potential 50 Energy Generation 20 Energy Capacity 350 Matter Stores 300 Matter Capacity 300 Sight Range 22 Terrain Scan Range 20 Terrain Scan Density 10 ECM Strength 2 Evasion (%) 73 Targeting Accuracy 5 Item Schematics ----------------- None Robot Schematics ------------------ None Fabricated ------------ Shock Absorption System | x2 | -7/Factory | Preloaded Repaired ---------- Nothing Studied --------- None Alien Tech Used ----------------- None Achievements -------------- Art Critic For Emergencies Only Heavy Suspicion Spot Them First Challenges ------------ None Game ------ Seed EtherialConcussiveCannon Manual? 0 Play Time 00:32:48 Cumulative 21.8 hours Start 2026.03.22 @ 23:13:15 End 2026.03.22 @ 23:42:06 Sessions 1 Manual Loads 0 Difficulty Rogue Special Mode None Game No. 67 Rogue 67 Adventurer 0 Explorer 0 Win Type - Total 0 Types 0/0/0/0/0/0/0/0/0/0 Lore% 26 Gallery% 23 Achievement% 19 Wizard Run 0 Options --------- Layout 2 ASCII 0 Keyboard 0 Movement Mouse Keybinds 0 Fullscreen 2 Font 24/Smallcaps Map View 50x44 Zoom Use 0% Tactical HUD 1 Map Filters NONE Filters NONE Steam 1 RUN: b1569c65-81fb-47ee-99ce-0baeb4a9e5f8